bitfinex/quotes_BTCUSD_20250616
["timestamp","ask_amount","ask_price","bid_price","bid_amount"]
[1750103942195,3.65543171,108580.0,108570.0,0.24183117]
[1750103942452,0.11924955,108580.0,108570.0,0.79488434]
[1750103942672,0.61782987,108580.0,108570.0,0.79488434]
[1750103942886,0.68028335,108580.0,108570.0,0.79488434]
[1750103943112,0.88257314,108580.0,108570.0,0.79488434]
[1750103943329,0.49608737,108580.0,108570.0,0.79488434]
[1750103943543,0.68912737,108580.0,108570.0,0.79488434]
[1750103943759,0.67991766,108580.0,108570.0,0.79488434]
[1750103943979,0.49608737,108580.0,108570.0,0.79488434]
[1750103944266,0.02750974,108600.0,108580.0,0.0312]
[1750103944461,0.34461402,108610.0,108600.0,0.2783455]
[1750103944462,0.21176558,108610.0,108600.0,0.2783455]
[1750103944683,0.21176558,108610.0,108600.0,0.25993016]
[1750103944684,0.80096785,108610.0,108600.0,0.25993016]
[1750103944895,0.3077355,108610.0,108600.0,0.58177162]
[1750103945113,0.83188103,108610.0,108600.0,0.06656]
[1750103945325,0.63880103,108610.0,108600.0,0.06656]
[1750103945997,0.83196103,108610.0,108600.0,0.58177162]
[1750103946463,0.09624176,108610.0,108600.0,1.30876857]
[1750103946682,0.1238619,108610.0,108600.0,0.79355695]
[1750103946922,0.11465499,108610.0,108600.0,0.79355695]
[1750103947151,0.23010357,108620.0,108610.0,0.27446592]
[1750103947386,0.34,108620.0,108610.0,0.7978842]
[1750103947636,0.30252454,108630.0,108620.0,0.2836524]
[1750103947637,0.32093582,108630.0,108620.0,0.2836524]
[1750103947870,0.21465186,108630.0,108620.0,0.79886402]
[1750103948105,0.19624176,108630.0,108620.0,0.79786402]
[1750103948329,0.53624176,108630.0,108620.0,0.79786402]
[1750103948552,0.21368847,108650.0,108640.0,0.26520307]
[1750103948806,0.11679001,108650.0,108640.0,0.80348317]
[1750103949027,0.1841861,108660.0,108650.0,0.26983241]
[1750103949028,0.01840476,108660.0,108650.0,0.26983241]
[1750103949251,0.23281125,108660.0,108650.0,0.7942473]
[1750103949478,0.00047265,108660.0,108650.0,0.7942473]
[1750103949701,0.16347174,108670.0,108660.0,0.27436839]
[1750103949919,0.42917,108670.0,108660.0,0.27902839]
[1750103950136,0.42917,108670.0,108660.0,0.27802839]
[1750103950137,0.419968,108670.0,108660.0,0.27802839]
[1750103950564,0.58252991,108670.0,108660.0,0.27802839]
[1750103950781,0.573328,108670.0,108660.0,0.27802839]
[1750103951000,0.58252983,108670.0,108660.0,0.27802839]
[1750103951220,0.06156477,108670.0,108660.0,0.27802839]
[1750103951441,0.00091,108670.0,108660.0,1.35745163]
[1750103952130,0.00091,108670.0,108660.0,0.84324001]
[1750103952357,0.00091,108670.0,108660.0,0.99652001]
[1750103952613,0.00091,108670.0,108660.0,1.51073163]
[1750103953031,0.00091,108670.0,108660.0,0.99885552]
[1750103953242,0.00091,108670.0,108660.0,0.99785552]
[1750103953449,0.00091,108670.0,108660.0,0.48026839]
[1750103953669,0.00191,108670.0,108660.0,0.33702839]
[1750103953896,0.02031297,108670.0,108660.0,0.49038839]
[1750103954110,0.01111157,108670.0,108660.0,0.49034839]
[1750103954326,0.01111157,108670.0,108660.0,0.07736]
[1750103954327,0.22276082,108670.0,108660.0,0.07736]
[1750103954550,0.22276082,108670.0,108660.0,0.27062321]
[1750103954551,0.34312061,108670.0,108660.0,0.27062321]
[1750103954786,0.29139736,108670.0,108660.0,0.26142037]
[1750103954997,0.43679519,108670.0,108660.0,0.08436]
[1750103955498,0.96592317,108670.0,108660.0,0.02166]
[1750103955718,1.30592317,108670.0,108660.0,0.02166]
[1750103956144,4.24482917,108670.0,108660.0,0.02166]
[1750103956368,4.24482917,108670.0,108660.0,0.01166]
[1750103956369,3.57564204,108670.0,108660.0,0.01166]
[1750103956591,3.76944204,108670.0,108660.0,0.04356]
[1750103956803,3.76944204,108670.0,108660.0,0.04956]
[1750103957030,3.76844204,108670.0,108660.0,0.00466]
[1750103957241,3.76844204,108670.0,108660.0,0.00866]
[1750103957469,0.82423719,108670.0,108660.0,0.04056]
[1750103957690,0.82423719,108670.0,108660.0,0.00866]
[1750103957912,4.12608617,108670.0,108660.0,0.00866]
[1750103958129,4.31988617,108670.0,108660.0,0.00866]
[1750103958371,3.61249904,108670.0,108660.0,0.01266]
[1750103958592,3.80625904,108670.0,108660.0,0.01266]
[1750103958814,3.61149904,108670.0,108660.0,0.00866]
[1750103959049,3.80525904,108670.0,108660.0,0.00866]
[1750103959267,3.80721904,108670.0,108660.0,0.01166]
[1750103959926,3.80725904,108670.0,108660.0,0.01166]
[1750103960366,3.61249904,108670.0,108660.0,0.01166]
[1750103960581,0.67359304,108670.0,108660.0,0.01166]
[1750103960796,0.86835304,108670.0,108660.0,0.01166]
[1750103961004,0.67359304,108670.0,108660.0,0.01166]
[1750103961220,0.86835304,108670.0,108660.0,0.01166]
[1750103961885,0.86847304,108670.0,108660.0,0.01356]
[1750103962115,0.68207988,108670.0,108660.0,0.01356]
[1750103962537,0.87695988,108670.0,108660.0,0.01356]
[1750103963026,0.86237903,108670.0,108660.0,0.04616]
[1750103963454,0.50596574,108670.0,108660.0,0.29903123]
[1750103963671,0.02951523,108670.0,108660.0,0.29903123]
[1750103963887,0.02031323,108670.0,108660.0,0.29903123]
[1750103964103,0.34191,108670.0,108660.0,0.34903123]
[1750103964545,0.34191,108670.0,108660.0,0.86361836]
[1750103964774,0.35111149,108670.0,108660.0,0.34903123]
[1750103964990,0.34191,108670.0,108660.0,0.34903123]
[1750103965201,0.55355866,108670.0,108660.0,0.33062614]
[1750103965433,0.5443576,108670.0,108660.0,0.31222037]
[1750103965644,0.55285531,108670.0,108660.0,0.27142338]
[1750103965876,0.54365331,108670.0,108660.0,0.27142338]
[1750103966108,0.54365331,108670.0,108660.0,0.28982898]
[1750103966329,0.54365331,108670.0,108660.0,0.29903157]
[1750103966761,0.55285522,108670.0,108660.0,0.28062631]
[1750103966989,0.55285522,108670.0,108660.0,0.27142338]
[1750103967210,0.55285522,108670.0,108660.0,0.28982865]
[1750103967457,0.55285522,108670.0,108660.0,0.28982881]
[1750103967664,0.37801328,108670.0,108660.0,0.81361836]
[1750103967886,0.36881077,108670.0,108660.0,0.29903123]
[1750103968368,0.57125828,108670.0,108660.0,0.2990314]
[1750103968602,0.35040771,108670.0,108660.0,0.35823382]
[1750103969511,0.01040771,108670.0,108660.0,0.87282095]
[1750103969975,0.01040771,108670.0,108660.0,0.96906271]
[1750103970672,0.01040771,108670.0,108660.0,0.96506271]
[1750103971333,0.01040771,108670.0,108660.0,0.97545871]
[1750103971550,0.00940771,108670.0,108660.0,0.97245871]
[1750103971984,0.00940771,108670.0,108660.0,0.98045871]
[1750103972447,0.00940771,108670.0,108660.0,1.02237871]
[1750103972668,0.00940771,108670.0,108660.0,0.98145871]
[1750103972891,0.00940771,108670.0,108660.0,0.52510982]
[1750103973113,0.00940771,108670.0,108660.0,0.52518982]
[1750103973341,0.0186092,108670.0,108660.0,0.52518982]
[1750103973563,0.01860911,108670.0,108660.0,0.52522982]
[1750103973796,0.00940771,108670.0,108660.0,0.52518982]
[1750103975348,0.00940771,108670.0,108660.0,0.88521695]
[1750103975562,0.00940771,108670.0,108660.0,1.03973695]
[1750103975998,0.00940771,108670.0,108660.0,1.13597871]
[1750103976220,0.00947493,108670.0,108660.0,0.98145871]
[1750103976448,0.00947493,108670.0,108660.0,1.13605871]
[1750103978472,0.00947493,108670.0,108660.0,1.33605871]
[1750103978909,0.0094991,108670.0,108660.0,1.33605871]
[1750103980042,0.00408517,108670.0,108660.0,1.33605871]
[1750103980504,0.00408517,108670.0,108660.0,1.69209956]
[1750103980505,2.417e-05,108670.0,108660.0,1.69209956]
[1750103980724,0.022,108690.0,108680.0,0.25287944]
[1750103980939,0.022,108690.0,108680.0,1.01854833]
[1750103980940,0.02214171,108690.0,108680.0,1.01854833]
[1750103981158,0.02214171,108690.0,108680.0,0.5039612]
[1750103981393,0.02214171,108690.0,108680.0,1.06854833]
[1750103981628,0.02214171,108690.0,108680.0,1.06850833]
[1750103981840,0.02214171,108690.0,108680.0,1.06846833]
[1750103982275,0.02214171,108690.0,108680.0,0.91370833]
[1750103982489,0.02214171,108690.0,108680.0,1.06842833]
[1750103982918,0.02214171,108690.0,108680.0,0.91370833]
[1750103983133,0.02214171,108690.0,108680.0,1.06842833]
[1750103983381,0.02214171,108690.0,108680.0,0.4101212]
[1750103983602,0.02214171,108690.0,108680.0,1.07938833]
[1750103985360,0.02214171,108690.0,108680.0,0.4101212]
[1750103985574,0.02214171,108690.0,108680.0,1.07938833]
[1750103985789,0.02214171,108690.0,108680.0,0.92470833]
[1750103986010,0.02214171,108690.0,108680.0,1.07974833]
[1750103986453,0.02214171,108690.0,108680.0,1.79433546]
[1750103986675,0.02214171,108690.0,108680.0,1.27974833]
[1750103987374,0.02214171,108690.0,108680.0,1.12470833]
[1750103987597,0.02214171,108690.0,108680.0,1.32078833]
[1750103989606,0.02214171,108690.0,108680.0,1.83537546]
[1750103990521,0.02214171,108690.0,108680.0,1.84991631]
[1750103990746,0.02214171,108690.0,108680.0,2.23991631]
[1750103991883,0.02214171,108690.0,108680.0,2.43991631]
[1750103992095,0.02214171,108690.0,108680.0,2.38991631]
[1750103992312,0.02214171,108690.0,108680.0,2.43991631]
[1750103993423,0.002,108710.0,108700.0,1.40126848]
[1750103993618,0.002,108710.0,108700.0,1.65267024]
[1750103994107,0.002,108710.0,108700.0,1.68029924]
[1750103994335,0.002,108710.0,108700.0,1.93029924]
[1750103994583,0.003,108710.0,108700.0,2.45488637]
[1750103994821,0.002,108730.0,108720.0,0.53210158]
[1750103995052,0.00214168,108730.0,108720.0,1.8126776]
[1750103995278,0.00214168,108730.0,108720.0,1.14293047]
[1750103995503,0.02053476,108730.0,108720.0,0.353346]
[1750103995697,0.02973159,108730.0,108720.0,0.4995084]
[1750103995967,0.01133809,108730.0,108720.0,0.50870608]
[1750103996189,0.02053467,108730.0,108720.0,0.87093321]
[1750103996414,0.00214168,108730.0,108720.0,0.53210102]
[1750103996633,0.01133818,108730.0,108720.0,0.53210102]
[1750103996846,0.01133809,108730.0,108720.0,1.04668815]
[1750103997077,0.00214168,108730.0,108720.0,0.53210102]
[1750103997299,0.00214168,108730.0,108720.0,1.04668815]
[1750103997540,0.00214168,108730.0,108720.0,1.07748815]
[1750103998001,0.00214168,108730.0,108720.0,1.30798815]
[1750103998244,0.00214168,108730.0,108720.0,2.02175613]
[1750103998456,0.00214168,108730.0,108720.0,1.364289]
[1750103998691,0.00214168,108730.0,108720.0,1.34974815]
[1750103998906,0.00214168,108730.0,108720.0,1.34982815]
[1750103999344,0.00214168,108730.0,108720.0,1.86441528]
[1750103999570,0.00214168,108730.0,108720.0,1.15262815]
[1750103999795,0.00214168,108730.0,108720.0,1.30806815]
[1750104000012,0.00214168,108730.0,108720.0,1.34986815]
[1750104000459,0.00214168,108730.0,108720.0,1.15262815]
[1750104000682,0.00214168,108730.0,108720.0,1.34990815]
[1750104001174,0.00214168,108730.0,108720.0,1.86449528]
[1750104001391,0.00214168,108730.0,108720.0,1.86639528]
[1750104001642,0.00214168,108730.0,108720.0,1.89402128]
[1750104002077,0.00214168,108730.0,108720.0,0.70936702]
[1750104002295,0.00214168,108730.0,108720.0,1.37935415]
[1750104002739,0.00214168,108730.0,108720.0,1.89394128]
[1750104003624,0.00214168,108730.0,108720.0,1.37935415]
[1750104003852,0.00214168,108730.0,108720.0,0.63706702]
[1750104004076,0.03214168,108730.0,108720.0,0.30527526]
[1750104004301,0.06354168,108730.0,108720.0,0.30527526]
[1750104004526,0.08688467,108730.0,108720.0,0.27764926]
[1750104004764,0.07768809,108730.0,108720.0,0.43334926]
[1750104004956,0.09608168,108730.0,108720.0,0.27774926]
[1750104005216,0.09608159,108730.0,108720.0,0.38026926]
[1750104005446,0.08688476,108730.0,108720.0,0.43026926]
[1750104005660,0.08688476,108730.0,108720.0,0.43226926]
[1750104005904,0.09608142,108730.0,108720.0,0.43226926]
[1750104006115,0.06849168,108730.0,108720.0,0.42826926]
[1750104006364,0.07768801,108730.0,108720.0,0.43026926]
[1750104006585,0.09608126,108730.0,108720.0,0.43122926]
[1750104006807,0.08688451,108730.0,108720.0,0.27574926]
[1750104007027,0.08688451,108730.0,108720.0,0.43118926]
[1750104007747,0.58411715,108740.0,108730.0,0.10185471]
[1750104007974,0.58411715,108740.0,108730.0,0.3617119]
[1750104008233,0.58411715,108740.0,108730.0,0.15937611]
[1750104008443,0.54231715,108740.0,108730.0,0.35251507]
[1750104008658,0.54231715,108740.0,108730.0,0.37090866]
[1750104009148,0.54331715,108740.0,108730.0,0.36271199]
[1750104009366,0.54331715,108740.0,108730.0,0.37190874]
[1750104010027,0.54809715,108740.0,108730.0,0.38110541]
[1750104010475,1.07544718,108740.0,108730.0,0.16037611]
[1750104010690,1.11724718,108740.0,108730.0,0.34431798]
[1750104010910,1.17784718,108740.0,108730.0,0.35351507]
[1750104011130,1.16865102,108740.0,108730.0,0.35351507]
[1750104011552,0.65406389,108740.0,108730.0,0.36421207]
[1750104011984,0.65406389,108740.0,108730.0,0.36521207]
[1750104012444,1.2601169,108740.0,108730.0,0.16287611]
[1750104012696,4.31376992,108740.0,108730.0,0.16287611]
[1750104012960,4.40131751,108740.0,108730.0,0.16287611]
[1750104013176,4.43796221,108740.0,108730.0,0.16287611]
[1750104013386,4.4190875,108740.0,108730.0,0.16287611]
[1750104013607,4.44654051,108740.0,108730.0,0.16287611]
[1750104013834,4.46370037,108740.0,108730.0,0.16287611]
[1750104014046,4.44654051,108740.0,108730.0,0.16287611]
[1750104014447,4.44654307,108740.0,108730.0,0.16287611]
[1750104014905,4.43796402,108740.0,108730.0,0.16287611]
[1750104015335,4.40131932,108740.0,108730.0,0.16287611]
[1750104015565,0.75050619,108740.0,108730.0,0.16287611]
[1750104015815,0.93320534,108740.0,108730.0,0.16287611]
[1750104016259,1.44779247,108740.0,108730.0,0.16287611]
[1750104017164,1.25055247,108740.0,108730.0,0.16287611]
[1750104017374,1.4204569,108740.0,108730.0,0.16287611]
[1750104017818,1.44791247,108740.0,108730.0,0.16287611]
[1750104018464,4.53415324,108740.0,108730.0,0.16287611]
[1750104018682,4.55720616,108740.0,108730.0,0.16287611]
[1750104019615,4.55720616,108740.0,108730.0,0.16187611]
[1750104019843,4.35884616,108740.0,108730.0,0.16187611]
[1750104020068,4.54769201,108740.0,108730.0,0.16187611]
[1750104020271,4.46312216,108740.0,108730.0,0.16187611]
[1750104020501,4.29570414,108740.0,108730.0,0.16187611]
[1750104020731,4.49310414,108740.0,108730.0,0.16187611]
[1750104020955,4.49309739,108740.0,108730.0,0.16187611]
[1750104021203,3.78111026,108740.0,108730.0,0.16187611]
[1750104021433,4.45914092,108740.0,108730.0,0.16187611]
[1750104021673,4.40537862,108740.0,108730.0,0.16187611]
[1750104021896,4.20797862,108740.0,108730.0,0.16187611]
[1750104022125,0.1904358,108740.0,108730.0,0.3642119]
[1750104022362,0.22872111,108740.0,108730.0,0.23707468]
[1750104022602,1.21733,108740.0,108730.0,0.16187611]
[1750104022839,1.2392848,108740.0,108730.0,0.16187611]
[1750104023052,1.2362848,108740.0,108730.0,0.16187611]
[1750104023261,1.2342848,108740.0,108730.0,0.16187611]
[1750104023493,1.4319648,108740.0,108730.0,0.16187611]
[1750104023744,1.4329648,108740.0,108730.0,0.16187611]
[1750104023975,1.4329648,108740.0,108730.0,0.16377611]
[1750104024244,1.3430648,108740.0,108730.0,0.16377611]
[1750104024805,1.3440648,108740.0,108730.0,0.16377611]
[1750104025011,4.29943165,108740.0,108730.0,0.16377611]
[1750104025234,4.10183165,108740.0,108730.0,0.16377611]
[1750104025480,4.29943165,108740.0,108730.0,0.16377611]
[1750104025668,4.32687492,108740.0,108730.0,0.16377611]
[1750104025874,4.12927492,108740.0,108730.0,0.16377611]
[1750104026097,4.32687492,108740.0,108730.0,0.16377611]
[1750104026304,4.34402383,108740.0,108730.0,0.16377611]
[1750104026523,4.32687492,108740.0,108730.0,0.16377611]
[1750104026938,4.32679492,108740.0,108730.0,0.16377611]
[1750104027152,3.63094694,108740.0,108730.0,0.16377611]
[1750104027369,1.3767048,108740.0,108730.0,0.16377611]
[1750104027587,1.1791848,108740.0,108730.0,0.16377611]
[1750104027827,1.3767448,108740.0,108730.0,0.16377611]
[1750104028244,1.1791848,108740.0,108730.0,0.16377611]
[1750104028672,1.3766648,108740.0,108730.0,0.16377611]
[1750104029314,1.3718848,108740.0,108730.0,0.16377611]
[1750104030218,0.65981767,108740.0,108730.0,0.16377611]
[1750104030420,1.3718848,108740.0,108730.0,0.16377611]
[1750104031029,1.3764748,108740.0,108730.0,0.16377611]
[1750104031272,4.32992165,108740.0,108730.0,0.16387611]
[1750104031445,4.35736492,108740.0,108730.0,0.16387611]
[1750104032902,4.6054944,108740.0,108730.0,0.16387611]
[1750104033119,4.61193206,108740.0,108730.0,0.16387611]
[1750104033327,4.61193135,108740.0,108730.0,0.16387611]
[1750104033535,4.63613806,108740.0,108730.0,0.16387611]
[1750104033742,4.5930807,108740.0,108730.0,0.16387611]
[1750104033949,4.63947889,108740.0,108730.0,0.16387611]
[1750104034150,4.63051854,108740.0,108730.0,0.16387611]
[1750104034771,4.63047854,108740.0,108730.0,0.16387611]
[1750104035195,4.67572886,108740.0,108730.0,0.16387611]
[1750104035598,4.67572585,108740.0,108730.0,0.16387611]
[1750104035795,4.47828585,108740.0,108730.0,0.16387611]
[1750104036023,4.67568585,108740.0,108730.0,0.16387611]
[1750104036597,4.63902811,108740.0,108730.0,0.16387611]
[1750104036803,4.63043029,108740.0,108730.0,0.16387611]
[1750104037712,4.43954407,108740.0,108730.0,0.16387611]
[1750104037928,4.61204352,108740.0,108730.0,0.16387611]
[1750104038159,4.59486407,108740.0,108730.0,0.16387611]
[1750104038382,4.62235825,108740.0,108730.0,0.16387611]
[1750104038595,4.59486407,108740.0,108730.0,0.16387611]
[1750104039704,4.59486635,108740.0,108730.0,0.16387611]
[1750104040570,4.61205419,108740.0,108730.0,0.16387611]
[1750104040787,4.58825839,108740.0,108730.0,0.16387611]
[1750104041856,4.59470587,108740.0,108730.0,0.16387611]
[1750104042271,4.58825839,108740.0,108730.0,0.16387611]
[1750104042483,4.6480168,108740.0,108730.0,0.16387611]
[1750104042691,4.63941796,108740.0,108730.0,0.16387611]
[1750104043556,4.63941701,108740.0,108730.0,0.16387611]
[1750104043972,4.63941631,108740.0,108730.0,0.16387611]
[1750104044907,5.11733574,108740.0,108730.0,0.16387611]
[1750104045339,5.13570976,108740.0,108730.0,0.16387611]
[1750104045553,1.05695981,108710.0,108700.0,0.002]
[1750104045762,1.37229935,108710.0,108700.0,0.00214168]
[1750104046194,1.37229935,108710.0,108700.0,0.00694168]
[1750104046833,1.37229935,108710.0,108700.0,0.00894168]
[1750104047250,1.37228753,108710.0,108700.0,0.00894168]
[1750104047495,1.37228753,108710.0,108700.0,0.01294168]
[1750104048574,4.37339353,108710.0,108700.0,0.00814168]
[1750104048792,4.34159353,108710.0,108700.0,0.00814168]
[1750104049003,4.31119353,108710.0,108700.0,0.00814168]
[1750104049223,1.37228753,108710.0,108700.0,0.01294168]
[1750104049451,0.7026204,108710.0,108700.0,0.01294168]
[1750104049683,0.8577804,108710.0,108700.0,0.01294168]
[1750104049896,0.8577804,108710.0,108700.0,0.27963285]
[1750104049897,0.56437864,108710.0,108700.0,0.27963285]
[1750104050110,0.73941268,108710.0,108700.0,0.27733307]
[1750104050560,0.73941268,108710.0,108700.0,0.26813378]
[1750104051023,0.73937268,108710.0,108700.0,0.32733307]
[1750104051695,0.35839697,108710.0,108700.0,0.3365321]
[1750104051918,0.35839621,108710.0,108700.0,0.3365321]
[1750104052147,0.36759457,108710.0,108700.0,0.3365321]
[1750104052367,0.03679047,108720.0,108710.0,0.28896914]
[1750104052601,0.53191047,108720.0,108710.0,0.28896914]
[1750104052811,0.53191039,108720.0,108710.0,0.28896914]
[1750104053049,0.03679039,108720.0,108710.0,0.27977104]
[1750104053304,0.03679039,108720.0,108710.0,0.32977104]
[1750104053305,0.02759245,108720.0,108710.0,0.32977104]
[1750104053542,0.52267237,108720.0,108710.0,0.33077104]
[1750104053934,0.50427734,108720.0,108710.0,0.33077104]
[1750104054176,0.34,108720.0,108710.0,0.33277104]
[1750104054434,0.36759254,108720.0,108710.0,0.33277104]
[1750104054670,0.37679039,108720.0,108710.0,0.33277104]
[1750104054964,0.35839477,108720.0,108710.0,0.33277104]
[1750104055200,0.36759245,108720.0,108710.0,0.33277104]
[1750104055433,0.3675922,108720.0,108710.0,0.33277104]
[1750104055672,0.37678988,108720.0,108710.0,0.33277104]
[1750104056168,0.56994711,108720.0,108710.0,0.33277104]
[1750104056403,0.37679039,108720.0,108710.0,0.33277104]
[1750104056874,0.56074918,108720.0,108710.0,0.33277112]
[1750104057106,0.37679039,108720.0,108710.0,0.34196931]
[1750104057798,0.36759262,108720.0,108710.0,0.34196931]
[1750104058286,0.35839494,108720.0,108710.0,0.34196931]
[1750104058522,0.52259202,108720.0,108710.0,0.34196931]
[1750104058772,0.38598747,108720.0,108710.0,0.34196931]
[1750104059004,0.38598815,108720.0,108710.0,0.34196931]
[1750104059483,0.5607496,108720.0,108710.0,0.33277112]
[1750104059718,0.7157096,108720.0,108710.0,0.33277104]
[1750104059957,0.72490753,108720.0,108710.0,0.33277121]
[1750104060158,0.71571002,108720.0,108710.0,0.33277121]
[1750104060395,0.70651167,108720.0,108710.0,0.32357285]
[1750104060634,0.70651167,108720.0,108710.0,0.33277121]
[1750104061114,0.70651167,108720.0,108710.0,0.34196948]
[1750104061355,0.70651167,108720.0,108710.0,0.33277121]
[1750104061842,0.70651167,108720.0,108710.0,0.30957441]
[1750104062085,0.68811656,108720.0,108710.0,0.19157571]
[1750104062329,0.706512,108720.0,108710.0,0.23317376]
[1750104062568,0.706512,108720.0,108710.0,0.27217285]
[1750104063061,0.34,108720.0,108710.0,0.34976775]
[1750104063311,0.23351443,108740.0,108730.0,0.26613229]
[1750104063548,0.7155484,108740.0,108730.0,0.30993887]
[1750104063750,0.70635292,108740.0,108730.0,0.32833262]
[1750104064023,0.70635284,108740.0,108730.0,0.31913579]
[1750104064282,0.70635284,108740.0,108730.0,0.32833246]
[1750104064509,0.6971571,108740.0,108730.0,0.30993887]
[1750104064742,1.38253964,108740.0,108730.0,0.002]
[1750104064963,1.37338789,108740.0,108730.0,0.002]
[1750104065205,1.37338922,108740.0,108730.0,0.002]
[1750104065648,4.31229522,108740.0,108730.0,0.002]
[1750104065883,4.33141607,108740.0,108730.0,0.002]
[1750104066118,4.45507275,108740.0,108730.0,0.002]
[1750104066344,4.52397196,108740.0,108730.0,0.002]
[1750104066566,4.52395205,108740.0,108730.0,0.002]
[1750104066790,4.37011154,108740.0,108730.0,0.002]
[1750104067006,4.46196967,108740.0,108730.0,0.002]
[1750104067229,0.5423544,108720.0,108710.0,0.0046]
[1750104067454,0.79339616,108720.0,108710.0,0.0046]
[1750104067905,0.81538438,108720.0,108710.0,0.0046]
[1750104068123,0.19317432,108710.0,108700.0,0.31523169]
[1750104068342,0.19317432,108710.0,108700.0,0.31983169]
[1750104068563,0.21157129,108710.0,108700.0,0.32903081]
[1750104068782,0.02759558,108710.0,108700.0,0.32903081]
[1750104068990,0.03679428,108710.0,108700.0,0.32903081]
[1750104069208,0.22076999,108710.0,108700.0,0.33822984]
[1750104069421,0.22996877,108710.0,108700.0,0.32903081]
[1750104069638,0.2115718,108710.0,108700.0,0.31983186]
[1750104069866,0.01839731,108710.0,108700.0,0.34023018]
[1750104070082,0.02759499,108710.0,108700.0,0.34023018]
[1750104070363,0.0367936,108710.0,108700.0,0.34423018]
[1750104070582,0.02759499,108710.0,108700.0,0.34423018]
[1750104070789,0.0367936,108710.0,108700.0,0.34423018]
[1750104071015,0.22076991,108710.0,108700.0,0.33503115]
[1750104071229,0.01839714,108710.0,108700.0,0.3140301]
[1750104071440,0.22076982,108710.0,108700.0,0.3140301]
[1750104071869,0.22076982,108710.0,108700.0,0.30483107]
[1750104072326,0.21157155,108710.0,108700.0,0.29563178]
[1750104072553,0.19317441,108710.0,108700.0,0.19213432]
[1750104072771,0.19317441,108710.0,108700.0,0.19673432]
[1750104073205,0.22577571,108710.0,108700.0,0.21513332]
[1750104073426,0.22577571,108710.0,108700.0,0.02194131]
[1750104073878,1.08036284,108710.0,108700.0,0.00814168]
[1750104074308,1.1766046,108710.0,108700.0,0.00814168]
[1750104074528,1.2391046,108710.0,108700.0,0.00814168]
[1750104075846,1.2072046,108710.0,108700.0,0.00814168]
[1750104076066,0.69261747,108710.0,108700.0,0.00814168]
[1750104076764,1.2378046,108710.0,108700.0,0.00814168]
[1750104076985,0.72321747,108710.0,108700.0,0.00814168]
[1750104078923,1.2378046,108710.0,108700.0,0.00814168]
[1750104079612,4.36765714,108710.0,108700.0,0.00814168]
[1750104079843,4.39972469,108710.0,108700.0,0.00814168]
[1750104080295,4.39968857,108710.0,108700.0,0.00814168]
[1750104080743,4.39968857,108710.0,108700.0,0.00414168]
[1750104081192,3.68886144,108710.0,108700.0,0.00414168]
[1750104081420,4.37175461,108710.0,108700.0,0.00414168]
[1750104081866,4.37175461,108710.0,108700.0,0.00514168]
[1750104082520,4.39920857,108710.0,108700.0,0.00514168]
[1750104084180,4.39920857,108710.0,108700.0,0.00414168]
[1750104084403,4.40020857,108710.0,108700.0,0.00214168]
[1750104085786,4.37263461,108710.0,108700.0,0.00214168]
[1750104086439,4.40008857,108710.0,108700.0,0.00214168]
[1750104086661,4.37263461,108710.0,108700.0,0.00214168]
[1750104086879,4.40008857,108710.0,108700.0,0.00214168]
[1750104087098,4.20444857,108710.0,108700.0,0.00214168]
[1750104087308,4.40000857,108710.0,108700.0,0.00214168]
[1750104088416,4.49615779,108710.0,108700.0,0.00214168]
[1750104088648,4.5327544,108710.0,108700.0,0.00214168]
[1750104088872,4.5604024,108710.0,108700.0,0.00214168]
[1750104089105,4.56054331,108710.0,108700.0,0.00214168]
[1750104089341,4.46435409,108710.0,108700.0,0.00214168]
[1750104089554,4.47077869,108710.0,108700.0,0.00214168]
[1750104089764,4.47277869,108710.0,108700.0,0.00214168]
[1750104089976,4.46535409,108710.0,108700.0,0.00214168]
[1750104090190,4.42867748,108710.0,108700.0,0.00214168]
[1750104090418,4.46735409,108710.0,108700.0,0.00214168]
[1750104090674,4.56992709,108710.0,108700.0,0.00214168]
[1750104090904,4.47377684,108710.0,108700.0,0.00214168]
[1750104091800,4.98850488,108710.0,108700.0,0.00214168]
[1750104092009,4.98196213,108710.0,108700.0,0.00214168]
[1750104093816,4.98838195,108710.0,108700.0,0.00214168]
[1750104094070,4.98196213,108710.0,108700.0,0.00214168]
[1750104094297,5.02116663,108710.0,108700.0,0.00214168]
[1750104095385,4.50635859,108710.0,108700.0,0.00214168]
[1750104095594,4.51278211,108710.0,108700.0,0.00214168]
[1750104095851,4.47357761,108710.0,108700.0,0.00214168]
[1750104096069,4.47357733,108710.0,108700.0,0.00214168]
[1750104097184,3.71592944,108710.0,108700.0,0.00214168]
[1750104097400,4.09981467,108710.0,108700.0,0.00666168]
[1750104097614,4.29493467,108710.0,108700.0,0.07026168]
[1750104097842,1.16090867,108710.0,108700.0,0.26345395]
[1750104098074,0.99406551,108710.0,108700.0,0.07026168]
[1750104098298,0.82087586,108710.0,108700.0,0.07026168]
[1750104098523,1.35599586,108710.0,108700.0,0.06574168]
[1750104098748,1.35599586,108710.0,108700.0,0.00214168]
[1750104099631,1.35603586,108710.0,108700.0,0.00666168]
[1750104100503,1.16087586,108710.0,108700.0,0.00214168]
[1750104100719,1.35599586,108710.0,108700.0,0.00214168]
[1750104101645,1.52988593,108710.0,108700.0,0.00214168]
[1750104101858,1.46597067,108710.0,108700.0,0.00214168]
[1750104102072,4.40487667,108710.0,108700.0,0.00214168]
[1750104102312,4.95628132,108710.0,108700.0,0.00214168]
[1750104102526,4.46920128,108710.0,108700.0,0.00214168]
[1750104102737,5.05262458,108710.0,108700.0,0.00214168]
[1750104103170,4.54432666,108710.0,108700.0,0.00214168]
[1750104104011,4.56147343,108710.0,108700.0,0.00214168]
[1750104105365,4.46532421,108710.0,108700.0,0.00214168]
[1750104105797,4.27020421,108710.0,108700.0,0.00214168]
[1750104106048,4.46516872,108710.0,108700.0,0.00214168]
[1750104106475,4.52018937,108710.0,108700.0,0.00214168]
[1750104106697,4.49660797,108710.0,108700.0,0.00214168]
[1750104106916,4.46516916,108710.0,108700.0,0.00214168]
[1750104107569,4.52018981,108710.0,108700.0,0.00214168]
[1750104107783,4.56131838,108710.0,108700.0,0.00214168]
[1750104108233,4.56115838,108710.0,108700.0,0.00214168]
[1750104108455,4.52002981,108710.0,108700.0,0.00214168]
[1750104108951,4.3089132,108710.0,108700.0,0.00214168]
[1750104109161,4.37968455,108710.0,108700.0,0.00214168]
[1750104109372,4.37968479,108710.0,108700.0,0.00214168]
[1750104109585,4.36938795,108710.0,108700.0,0.00214168]
[1750104109800,4.35223198,108710.0,108700.0,0.00214168]
[1750104110461,4.22043198,108710.0,108700.0,0.00214168]
[1750104110670,4.37253631,108710.0,108700.0,0.00214168]
[1750104111095,4.37897003,108710.0,108700.0,0.00214168]
[1750104112153,3.86424199,108710.0,108700.0,0.07076168]
[1750104112353,4.37897003,108710.0,108700.0,0.07076168]
[1750104112568,4.37896994,108710.0,108700.0,0.03896168]
[1750104112782,4.37896994,108710.0,108700.0,0.00666168]
[1750104113638,4.18488994,108710.0,108700.0,0.00666168]
[1750104113859,4.43199142,108710.0,108700.0,0.00214168]